bitfinex/quotes_SOLUSD_20260105
["timestamp","ask_amount","ask_price","bid_price","bid_amount"]
[1767639410327,17.55867235,137.1,137.06,0.69278438]
[1767639410627,17.55867235,137.1,137.04,7.98985974]
[1767639410830,17.55867235,137.1,137.03,0.2]
[1767639410831,13.28,137.11,137.07,0.69278438]
[1767639411018,20.57344452,137.11,137.07,0.69278438]
[1767639411221,30.83797487,137.11,137.07,0.69278438]
[1767639411731,13.28,137.11,137.07,10.95731473]
[1767639411913,13.28,137.11,137.07,0.69278438]
[1767639412114,13.28,137.11,137.07,10.95731473]
[1767639412312,13.28,137.11,137.07,0.69278438]
[1767639412516,13.28,137.11,137.07,10.95731473]
[1767639413525,20.57347827,137.11,137.07,10.95731473]
[1767639413727,7.29347827,137.11,137.07,10.95731473]
[1767639414236,10.26453035,137.09,137.05,0.69099148]
[1767639414830,7.29347827,137.11,137.05,0.69099148]
[1767639415030,10.26453035,137.06,137.03,1e-08]
[1767639415414,23.56453035,137.07,137.03,1e-08]
[1767639416043,10.26453035,137.06,137.03,1e-08]
[1767639416249,46.72050454,137.16,137.03,1e-08]
[1767639416250,7.2902238,137.17,137.06,0.69099148]
[1767639416411,10.26453035,137.15,137.09,0.69099148]
[1767639416839,10.26453035,137.13,137.09,0.69099148]
[1767639417027,23.56453035,137.13,137.09,0.69099148]
[1767639417220,23.56453035,137.13,137.07,0.69099148]
[1767639417221,17.55792335,137.12,137.07,0.69099148]
[1767639417421,7.293393,137.12,137.07,0.69099148]
[1767639417617,10.26453035,137.1,137.07,0.69099148]
[1767639417822,10.26453035,137.09,137.05,0.69099148]
[1767639418612,10.26453035,137.1,137.05,7.98756566]
[1767639419442,17.5585508,137.1,137.05,0.69099148]
[1767639419644,13.3,137.09,137.05,0.69099148]
[1767639420837,18.22987285,137.14,137.06,0.70474321]
[1767639421045,23.56453035,137.11,137.06,0.70474321]
[1767639421420,30.85807432,137.11,137.06,0.70474321]
[1767639421621,13.3,137.11,137.07,0.70474321]
[1767639421979,23.56453035,137.12,137.07,0.70474321]
[1767639422317,18.22987285,137.14,137.07,0.70474321]
[1767639422318,10.26453035,137.14,137.08,0.70474321]
[1767639422927,10.26453035,137.14,137.1,0.70474321]
[1767639423130,10.26453035,137.14,137.08,0.70474321]
[1767639423535,7.29195209,137.14,137.09,0.70474321]
[1767639423731,17.55648244,137.14,137.09,0.70474321]
[1767639423928,7.29195209,137.14,137.09,0.70474321]
[1767639424128,10.26453035,137.13,137.09,0.70474321]
[1767639424429,10.26453035,137.14,137.09,0.70474321]
[1767639424723,13.3,137.13,137.09,0.70474321]
[1767639426915,13.3,137.13,137.1,0.70474321]
[1767639427532,13.3,137.13,137.09,17.55885221]
[1767639427746,13.3,137.13,137.1,0.70474321]
[1767639427948,13.3,137.13,137.09,7.29432186]
[1767639428445,13.3,137.13,137.1,7.99865352]
[1767639428644,13.3,137.14,137.1,7.29391031]
[1767639429147,13.3,137.14,137.11,0.70474321]
[1767639429535,13.3,137.14,137.1,7.29391031]
[1767639429736,10.26453035,137.15,137.1,7.29391031]
[1767639429942,23.56453035,137.15,137.11,0.70474321]
[1767639430450,23.56453035,137.15,137.1,7.29391031]
[1767639431441,30.85589408,137.15,137.1,7.99865352]
[1767639431649,30.85589408,137.15,137.1,0.70474321]
[1767639431848,30.85589408,137.15,137.09,7.29428482]
[1767639432339,30.85589408,137.15,137.1,0.70474321]
[1767639432545,30.85589408,137.15,137.11,0.70474321]
[1767639432739,10.26453035,137.13,137.08,7.29469174]
[1767639432939,10.26453035,137.14,137.09,7.29445083]
[1767639433150,10.26453035,137.14,137.08,7.29477538]
[1767639433542,10.26453035,137.14,137.08,7.99951859]
[1767639433853,10.26453035,137.14,137.08,7.29477538]
[1767639434256,10.26453035,137.14,137.09,0.70474321]
[1767639434757,17.5566748,137.14,137.08,7.29477538]
[1767639434951,30.85598168,137.15,137.08,18.26404894]
[1767639435157,10.26453035,137.14,137.09,0.70474321]
[1767639435657,10.26453035,137.14,137.08,18.26404894]
[1767639435854,13.3,137.15,137.11,0.70474321]
[1767639436050,13.3,137.15,137.12,0.70474321]
[1767639436758,13.3,137.15,137.11,17.55794439]
[1767639436979,18.22201656,137.2,137.12,0.70474321]
[1767639437255,10.26453035,137.18,137.12,10.26453035]
[1767639437553,18.22201656,137.2,137.12,0.70474321]
[1767639437750,10.26453035,137.18,137.13,0.70474321]
[1767639437958,10.26453035,137.18,137.13,7.29235032]
[1767639438257,20.58939944,137.19,137.14,0.70474321]
[1767639438258,30.85392979,137.19,137.14,0.70474321]
[1767639438639,6.31197002,137.18,137.14,0.70474321]
[1767639439344,6.31197002,137.18,137.13,7.29235032]
[1767639439546,6.31197002,137.17,137.12,7.29279724]
[1767639439944,7.28982899,137.18,137.12,7.99750896]
[1767639440141,13.60179901,137.18,137.12,13.60473577]
[1767639440336,6.31197002,137.17,137.12,7.29276575]
[1767639440543,2.35695414,137.17,137.12,7.99750896]
[1767639441053,9.64725888,137.17,137.12,7.29276575]
[1767639441236,2.35695414,137.16,137.1,9.65057378]
[1767639441437,9.64725888,137.17,137.11,9.65021515]
[1767639441753,9.64678394,137.18,137.11,9.65021515]
[1767639441961,9.64678394,137.18,137.11,10.35495836]
[1767639442258,9.64678394,137.18,137.11,7.99800422]
[1767639442259,2.35695414,137.17,137.11,7.99800422]
[1767639442436,2.35695414,137.17,137.12,0.70474321]
[1767639442642,9.64726622,137.17,137.11,10.35495836]
[1767639443043,9.64726622,137.17,137.12,0.70474321]
[1767639443457,9.64726622,137.17,137.11,9.65021515]
[1767639443961,9.64681833,137.18,137.13,0.70474321]
[1767639444160,9.64681833,137.18,137.12,9.64972723]
[1767639444559,9.64681833,137.18,137.12,10.35447044]
[1767639444757,22.92681833,137.18,137.13,0.70474321]
[1767639444963,22.92681833,137.18,137.12,7.29277309]
[1767639445353,9.64730861,137.17,137.12,0.70474321]
[1767639445955,25.51591399,137.17,137.1,0.70474321]
[1767639446142,2.35695414,137.15,137.1,0.70474321]
[1767639446454,13.28,137.14,137.1,0.70474321]
[1767639446864,15.63695414,137.14,137.1,0.70474321]
[1767639447671,13.28,137.14,137.1,0.70474321]
[1767639447969,15.63695414,137.14,137.1,0.70474321]
[1767639448171,13.28,137.14,137.1,0.70474321]
[1767639448373,15.63695414,137.14,137.1,0.70474321]
[1767639448667,13.28,137.14,137.1,0.70474321]
[1767639448975,15.57695415,137.14,137.11,0.70474321]
[1767639451672,2.35695414,137.16,137.11,0.70474321]
[1767639451881,13.28,137.14,137.11,0.70474321]
[1767639452870,15.63695414,137.14,137.11,0.70474321]
[1767639453680,20.57188428,137.14,137.09,0.66427082]
[1767639453972,2.35695414,137.13,137.09,0.66427082]
[1767639455968,13.3,137.12,137.09,0.66427082]
[1767639456891,2.35695414,137.13,137.09,0.66427082]
[1767639457182,9.64883842,137.14,137.1,0.66427082]
[1767639457482,13.3,137.13,137.1,0.66427082]
[1767639458281,25.51206355,137.19,137.11,0.66427082]
[1767639458482,2.35695414,137.16,137.11,0.66427082]
[1767639458694,13.3,137.15,137.11,0.66427082]
[1767639459294,22.94824343,137.15,137.11,0.66427082]
[1767639459581,15.65695414,137.15,137.11,0.66427082]
[1767639460560,2.35695414,137.14,137.11,0.66427082]
[1767639460879,13.3,137.15,137.11,0.66427082]
[1767639461067,2.35695414,137.14,137.11,0.66427082]
[1767639462283,13.3,137.15,137.12,0.66427082]
[1767639462466,15.65695414,137.15,137.12,0.66427082]
[1767639463970,15.65695414,137.15,137.11,0.66427082]
[1767639464185,2.35695414,137.14,137.11,0.66427082]
[1767639464387,13.3,137.15,137.11,0.66427082]
[1767639464588,2.35695414,137.14,137.11,0.66427082]
[1767639466090,7.29091001,137.16,137.11,0.66427082]
[1767639466277,163.4,137.25,137.12,0.66427082]
[1767639466479,2.35695414,137.17,137.12,0.66427082]
[1767639466669,13.3,137.16,137.12,0.66427082]
[1767639467689,7.28932373,137.19,137.13,0.66427082]
[1767639467889,15.65695414,137.17,137.13,0.66427082]
[1767639469893,15.65695414,137.17,137.12,69.55665663]
[1767639470081,2.35695414,137.16,137.12,69.55665663]
[1767639470389,0.13335455,137.21,137.15,0.66427082]
[1767639470579,0.68472899,137.19,137.15,0.66427082]
[1767639471373,15.76468299,137.2,137.15,0.66427082]
[1767639472476,23.05380541,137.2,137.15,0.66427082]
[1767639472891,20.56912242,137.2,137.16,0.66427082]
[1767639473090,13.28,137.19,137.16,0.66427082]
[1767639474704,15.63695414,137.19,137.16,0.66427082]
[1767639474994,22.92615684,137.19,137.16,0.66427082]
[1767639475201,3.0264612,137.17,137.12,0.71538446]
[1767639475392,15.63695414,137.16,137.12,0.71538446]
[1767639475791,13.28,137.16,137.12,0.71538446]
[1767639475988,15.63695414,137.16,137.12,0.71538446]
[1767639476689,15.63695414,137.16,137.12,8.0082195]
[1767639476881,2.35695414,137.16,137.12,8.0082195]
[1767639477082,15.63695414,137.16,137.12,8.0082195]
[1767639477283,2.35695414,137.15,137.11,0.71538446]
[1767639479603,23.59749352,137.16,137.12,0.71538446]
[1767639481198,2.35695414,137.15,137.12,0.71538446]
[1767639481377,9.64847545,137.15,137.12,0.71538446]
[1767639481577,23.59741691,137.16,137.12,0.71538446]
[1767639481883,2.35695414,137.14,137.1,0.66743136]
[1767639482397,13.28,137.13,137.1,0.66743136]
[1767639482579,0.10098377,137.14,137.1,20.59130392]
[1767639482779,13.38098377,137.15,137.11,0.66743136]
[1767639483003,13.99677606,137.15,137.11,0.66743136]
[1767639483382,13.99677606,137.15,137.11,7.96082921]
[1767639484301,13.28,137.15,137.12,0.66743136]
[1767639485202,2.35695414,137.16,137.12,0.66743136]
[1767639485404,13.28,137.15,137.12,0.66743136]
[1767639486014,0.1071417,137.14,137.1,7.96112501]
[1767639486182,0.1071417,137.14,137.1,7.29369365]
[1767639487029,13.28,137.17,137.13,0.66743136]
[1767639487318,2.35695414,137.16,137.13,0.66743136]
[1767639487484,15.63695414,137.17,137.13,0.66743136]
[1767639487682,13.28,137.17,137.13,0.66743136]
[1767639487989,15.63695414,137.17,137.13,0.66743136]
[1767639488193,15.63695414,137.17,137.13,7.95970552]
[1767639488398,2.35695414,137.16,137.13,7.95970552]
[1767639488704,13.28,137.17,137.13,7.95970552]
[1767639488895,2.35695414,137.16,137.13,7.95970552]
[1767639489711,2.35695414,137.15,137.13,0.66743136]
[1767639489909,2.35695414,137.2,137.14,3.0243855]
[1767639489910,0.72299619,137.2,137.14,3.0243855]
[1767639490207,0.72299619,137.2,137.15,7.29128691]
[1767639490208,13.28,137.19,137.15,7.29128691]
[1767639490511,13.28,137.19,137.15,7.95871827]
[1767639491608,13.28,137.19,137.15,28.54388969]
[1767639492405,13.28,137.19,137.15,26.18693555]
[1767639492710,13.28,137.19,137.15,10.31567241]
[1767639492899,13.28,137.19,137.15,7.95871827]
[1767639493917,13.28,137.19,137.15,10.31567241]
[1767639494214,13.28,137.19,137.15,7.95871827]
[1767639494601,0.72299619,137.19,137.15,7.95871827]
[1767639495023,0.72299619,137.19,137.15,10.31567241]
[1767639495210,0.72299619,137.19,137.15,7.95871827]
[1767639496822,0.72299619,137.17,137.13,0.66743136]
[1767639497064,16.35995033,137.17,137.13,0.66743136]
[1767639497318,16.35995033,137.17,137.13,7.95948261]
[1767639498023,14.00299619,137.17,137.14,7.29178269]
[1767639499816,0.72299619,137.16,137.11,80.50018502]
[1767639500116,14.00299619,137.18,137.14,0.66743136]
[1767639501397,14.00299619,137.18,137.14,7.95917885]
[1767639501608,13.28,137.18,137.14,11.64094236]
[1767639501808,14.00299619,137.18,137.14,7.95917885]
[1767639502325,14.00299619,137.18,137.14,11.64094236]
[1767639502512,13.28,137.18,137.15,0.66743136]
[1767639503022,14.00299619,137.2,137.16,0.66743136]
[1767639503222,24.97346426,137.2,137.16,0.66743136]
[1767639504426,21.29170075,137.2,137.16,0.66743136]
[1767639504629,24.97346426,137.2,137.16,0.66743136]
[1767639505329,0.72299619,137.19,137.15,0.66743136]
[1767639505833,0.72299619,137.19,137.15,7.95870847]
[1767639506131,0.72299619,137.19,137.14,3.68176351]
[1767639506132,0.72299619,137.19,137.14,4.34919487]
[1767639506323,0.72299619,137.19,137.14,11.64095064]
[1767639508731,0.72299619,137.19,137.14,10.97351928]
[1767639509129,0.72299619,137.19,137.14,11.64095064]
[1767639510324,4.4047597,137.19,137.14,7.95918713]
[1767639510524,0.72299619,137.18,137.14,11.64095064]
[1767639510723,0.72299619,137.21,137.17,4.34919487]
[1767639510928,0.72299619,137.21,137.17,3.68176351]
[1767639511232,0.67870826,137.24,137.18,4.36929536]
[1767639511436,0.67870826,137.23,137.18,0.68753185]
[1767639511639,0.67870826,137.23,137.18,4.36929536]
[1767639512219,0.67870826,137.23,137.18,11.65859767]
[1767639512619,0.67870826,137.23,137.19,4.36929536]
[1767639513328,0.67870826,137.23,137.19,0.68753185]
[1767639513530,0.67870826,137.23,137.19,4.36929536]
[1767639514241,4.46047177,137.25,137.2,7.97616158]
[1767639514428,0.67870826,137.24,137.2,7.28862973]
[1767639514628,0.67870826,137.27,137.22,0.68753185]
[1767639514821,0.67870826,137.29,137.22,0.68753185]
[1767639515027,0.67870826,137.27,137.22,4.36929536]
[1767639515220,3.68176351,137.28,137.23,0.68753185]
[1767639515426,0.67870826,137.3,137.26,0.68753185]
[1767639515643,0.67870826,137.3,137.25,4.36929536]
[1767639515937,0.67870826,137.3,137.22,13.96753185]
[1767639516141,0.67870826,137.3,137.26,3.68176351]
[1767639516328,0.67870826,137.3,137.26,10.96712396]
[1767639516926,3.68176351,137.31,137.26,11.65465581]
[1767639517132,0.67870826,137.31,137.26,11.65465581]
[1767639518446,0.67870826,137.31,137.26,7.9728923]
[1767639518640,0.67870826,137.31,137.26,11.65465581]
[1767639518946,0.67870826,137.31,137.27,0.68753185]
[1767639519237,0.67870826,137.31,137.26,11.65465581]
[1767639519824,0.67870826,137.31,137.27,0.68753185]
[1767639520434,0.67870826,137.31,137.27,7.9721309]
[1767639522050,0.67870826,137.31,137.27,11.65389441]
[1767639522342,4.36047177,137.31,137.26,11.65467368]
[1767639522550,0.67870826,137.31,137.26,11.65467368]
[1767639522743,0.77870826,137.33,137.28,4.36929536]
[1767639522931,0.67870826,137.37,137.3,0.625]
[1767639523136,0.67870826,137.36,137.31,3.68176351]
[1767639523326,0.67870826,137.36,137.31,4.30676351]
[1767639523848,0.67870826,137.36,137.32,7.28226041]
[1767639524226,4.36047177,137.35,137.29,7.9084329]
[1767639524432,0.67870826,137.37,137.31,0.625]
[1767639524630,0.67870826,137.38,137.33,0.625]
[1767639524829,0.67870826,137.36,137.31,4.30676351]
[1767639525038,0.67870826,137.35,137.31,0.625]
[1767639525238,4.36047177,137.33,137.28,4.30676351]
[1767639525442,0.67870826,137.33,137.28,4.30676351]
[1767639525627,4.36047177,137.33,137.28,4.30676351]
[1767639525837,11.64221238,137.33,137.28,0.625]
[1767639526029,0.67870826,137.32,137.28,0.625]
[1767639526222,4.36047177,137.32,137.27,10.96635766]
[1767639526443,4.36047177,137.32,137.27,11.59135766]
[1767639526634,0.67870826,137.32,137.27,7.90959415]
[1767639526845,0.67870826,137.32,137.27,11.59135766]
[1767639527657,0.67870826,137.31,137.27,7.90959415]
[1767639527951,0.67870826,137.31,137.27,7.28459415]
[1767639528152,0.67870826,137.31,137.27,7.90959415]
[1767639528951,13.28,137.32,137.25,0.625]
[1767639528952,4.36047177,137.3,137.25,0.625]
[1767639529127,4.36047177,137.3,137.25,7.91087936]
[1767639529745,0.67870826,137.29,137.25,7.28592022]
[1767639530542,0.67870826,137.29,137.25,7.91092022]
[1767639532644,4.36047177,137.29,137.25,7.91092022]
[1767639533369,4.36047177,137.29,137.22,13.28]
[1767639533370,3.68176351,137.28,137.24,7.91139135]
[1767639533745,0.67870826,137.29,137.24,7.91139135]
[1767639533746,17.64047177,137.29,137.24,7.91139135]
[1767639534366,13.28,137.28,137.24,7.91139135]
[1767639535367,13.95870826,137.29,137.24,11.59315486]
[1767639536169,17.64047177,137.29,137.24,7.91139135]
[1767639536379,0.69470368,137.28,137.24,7.91139135]
[1767639536546,0.69470368,137.34,137.27,3.68176351]
[1767639536861,0.69470368,137.34,137.31,3.68176351]
[1767639537737,13.28,137.35,137.3,7.90832119]
[1767639537942,13.97470368,137.35,137.3,11.5900847]
[1767639538148,4.37646719,137.31,137.25,7.99090668]
[1767639538343,3.68176351,137.29,137.25,0.70527672]
[1767639538566,13.97470368,137.3,137.25,0.70527672]
[1767639538860,4.37646719,137.29,137.25,0.70527672]
[1767639539648,0.69470368,137.29,137.25,7.99091903]
[1767639539847,13.28,137.29,137.26,0.70527672]
[1767639540061,13.28,137.3,137.26,0.70527672]
[1767639541065,0.66475172,137.32,137.27,0.65459376]
[1767639541272,13.94475172,137.34,137.3,4.33635727]
[1767639541566,13.28,137.34,137.3,3.68176351]
[1767639541766,0.66475172,137.33,137.3,10.9645717]
[1767639542092,0.66475172,137.33,137.3,7.28280819]
[1767639542370,0.66475172,137.33,137.3,10.9645717]
[1767639542962,0.66475172,137.33,137.29,7.28364447]
[1767639543146,0.66475172,137.33,137.29,10.96540798]
[1767639543547,0.66475172,137.33,137.29,7.28364447]
[1767639543744,0.66475172,137.33,137.29,10.96540798]
[1767639544375,0.66475172,137.33,137.29,7.28364447]
[1767639544554,0.66475172,137.33,137.29,10.96540798]
[1767639545260,0.66475172,137.33,137.29,7.28364447]
[1767639545460,0.66475172,137.33,137.29,10.96540798]
[1767639546572,0.66475172,137.33,137.28,3.68176351]
[1767639546758,0.66475172,137.33,137.28,4.33635727]
[1767639547077,0.66475172,137.33,137.27,25.49656085]
[1767639547276,0.66475172,137.33,137.28,3.68176351]
[1767639547446,13.28,137.33,137.29,0.65459376]
[1767639548161,13.28,137.33,137.3,0.65459376]
[1767639548361,0.66475172,137.36,137.31,0.65459376]
[1767639548567,0.66475172,137.34,137.3,10.96493935]
[1767639548782,0.66475172,137.34,137.3,7.28317584]
[1767639548960,16.96176351,137.35,137.31,0.65459376]
[1767639549469,0.66475172,137.34,137.3,7.28317584]
[1767639549785,0.66475172,137.42,137.34,0.65459376]
[1767639549959,0.66475172,137.4,137.35,4.33635727]
[1767639550570,16.96176351,137.41,137.32,4.33635727]
[1767639550571,7.94436153,137.37,137.32,4.33635727]
[1767639550871,21.22436153,137.37,137.32,4.33635727]
[1767639551063,21.22436153,137.37,137.32,0.65459376]
[1767639551659,24.90612504,137.37,137.32,0.65459376]
[1767639551866,24.90612504,137.37,137.31,3.68176351]
[1767639551867,0.66475172,137.36,137.31,3.68176351]
[1767639552180,4.34651523,137.36,137.31,3.68176351]
[1767639552780,11.62678442,137.36,137.3,11.61947942]
[1767639552965,0.66475172,137.35,137.3,4.33635727]
[1767639553366,4.34651523,137.35,137.3,0.65459376]
[1767639553678,0.66475172,137.34,137.3,0.65459376]
[1767639554378,13.28,137.33,137.3,0.65459376]
[1767639555086,13.28,137.33,137.31,4.33635727]
[1767639555284,13.28,137.33,137.3,7.28315618]
[1767639555285,13.28,137.33,137.3,3.68176351]
[1767639555668,0.66475172,137.32,137.27,4.33635727]
[1767639555862,0.66475172,137.31,137.27,0.65459376]
[1767639556058,4.34651523,137.31,137.27,0.65459376]
[1767639556278,4.34651523,137.31,137.25,3.68176351]
[1767639556279,4.34651523,137.3,137.25,4.33635727]
[1767639556478,17.62651523,137.29,137.24,3.68176351]
[1767639556672,13.94475172,137.29,137.24,11.62284552]
[1767639557274,24.91039422,137.29,137.24,0.65459376]
[1767639557482,4.34651523,137.28,137.23,0.65459376]
[1767639557679,0.66475172,137.27,137.23,0.65459376]
[1767639557892,0.66475172,137.26,137.23,7.28699816]
[1767639558198,0.60475173,137.26,137.22,10.96901633]
[1767639558366,0.60475173,137.26,137.22,7.28725282]
[1767639558567,0.60475173,137.26,137.22,10.96901633]
[1767639558791,0.54475174,137.26,137.22,10.96901633]
[1767639559375,13.82475174,137.26,137.22,10.96901633]
[1767639559770,0.54475174,137.26,137.22,10.96901633]
[1767639559971,13.82475174,137.26,137.22,10.96901633]
[1767639560266,13.28,137.28,137.24,3.68176351]
[1767639560686,13.28,137.28,137.23,4.33635727]
[1767639560889,13.94475172,137.28,137.23,4.33635727]
[1767639561191,13.94475172,137.28,137.26,3.68176351]
[1767639561679,13.94475172,137.28,137.25,3.68176351]
[1767639562071,13.28,137.28,137.25,3.68176351]
[1767639562274,7.94869023,137.29,137.25,3.68176351]
[1767639562586,13.28,137.28,137.24,3.00731053]
[1767639562995,13.28,137.28,137.24,0.65459376]
[1767639563185,13.94475172,137.28,137.24,0.65459376]
[1767639563365,9.63665528,137.29,137.2,24.16849308]
[1767639563366,0.66475172,137.27,137.22,0.65459376]
[1767639563561,13.28,137.26,137.23,3.00731053]
[1767639563782,13.28,137.26,137.23,0.65459376]
[1767639563985,10.301407,137.29,137.25,0.65459376]
[1767639564201,13.28,137.28,137.25,0.65459376]
[1767639564487,13.94475172,137.28,137.24,2.35271677]
[1767639564690,21.2291374,137.28,137.24,2.35271677]
[1767639564875,23.58185417,137.28,137.23,10.29406306]
[1767639565070,23.58185417,137.28,137.23,7.94134629]
[1767639565273,0.66475172,137.27,137.23,9.6394693]
[1767639565991,0.13884581,137.26,137.22,7.28717686]
[1767639566491,0.13884581,137.26,137.23,2.35271677]
[1767639567379,0.13884581,137.26,137.23,9.6394097]
[1767639568392,0.13884581,137.26,137.21,25.50783556]
[1767639568594,0.13884581,137.26,137.23,2.35271677]
[1767639569183,0.13884581,137.26,137.24,2.35271677]
[1767639569382,13.28,137.28,137.24,0.65459376]
[1767639569589,13.28,137.28,137.24,3.00731053]
[1767639569893,9.77542886,137.29,137.24,0.65459376]
[1767639570100,13.28,137.27,137.24,3.00731053]
[1767639570391,13.08278665,137.27,137.24,3.00731053]
[1767639570571,13.08278665,137.27,137.24,0.65459376]
[1767639570998,15.43550342,137.27,137.22,10.3549704]
[1767639571294,22.72052449,137.27,137.22,3.06763891]
[1767639571497,22.72052449,137.27,137.22,0.71492214]
[1767639571672,20.36780772,137.27,137.22,3.06763891]
[1767639571873,22.72052449,137.27,137.22,0.71492214]
[1767639572170,22.72052449,137.27,137.22,3.06763891]
[1767639572572,2.50187191,137.25,137.2,0.71492214]
[1767639572771,16.2820032,137.24,137.19,2.35271677]
[1767639572996,16.2820032,137.24,137.19,3.06763891]
[1767639573175,16.2820032,137.24,137.19,10.35668227]
[1767639573668,16.2820032,137.24,137.19,3.06763891]
[1767639574270,0.15415645,137.23,137.19,0.71492214]
[1767639574476,2.50687322,137.23,137.18,2.35271677]
[1767639574677,0.64433513,137.22,137.17,10.35783817]
[1767639575395,0.64433513,137.22,137.18,0.71492214]
[1767639575692,22.9199689,137.23,137.19,0.71492214]
[1767639576275,9.6399689,137.23,137.19,0.71492214]
[1767639576500,22.9199689,137.23,137.19,0.71492214]
[1767639576797,0.66927332,137.32,137.23,0.71492214]
[1767639576986,0.66927332,137.32,137.2,15.63271677]
[1767639576987,0.66392428,137.3,137.25,0.71492214]
[1767639577188,3.01664105,137.3,137.25,0.71492214]
[1767639577497,0.66392428,137.3,137.25,2.21164103]
[1767639577801,13.28,137.31,137.26,3.06763891]
[1767639577997,13.379,137.31,137.26,3.06763891]
[1767639578392,20.66216665,137.31,137.26,3.06763891]
[1767639578596,36.40808042,137.34,137.28,2.35271677]
[1767639578597,0.56392428,137.33,137.28,2.35271677]
[1767639578987,0.099,137.32,137.27,0.71492214]
[1767639579299,7.28066982,137.35,137.29,0.71492214]
[1767639579492,0.55927503,137.34,137.31,2.35271677]
[1767639579694,7.28066982,137.35,137.3,3.06763891]
[1767639579892,2.9119918,137.34,137.29,2.35271677]
[1767639580194,0.10360275,137.33,137.28,0.71492214]
[1767639580389,7.28066982,137.35,137.28,2.35271677]
[1767639580390,7.83711605,137.32,137.28,2.35271677]
[1767639580601,7.28239774,137.32,137.28,3.06763891]
[1767639581599,0.10360275,137.31,137.26,0.71492214]
[1767639581802,0.10360275,137.31,137.26,3.06763891]
[1767639582503,0.10360275,137.31,137.27,2.35271677]
[1767639582674,2.45631952,137.31,137.26,0.71492214]
[1767639582883,2.45631952,137.31,137.26,3.06763891]
[1767639583301,13.28,137.33,137.27,0.71492214]
[1767639583604,9.6353666,137.32,137.27,3.06763891]
[1767639583805,0.56392428,137.31,137.27,2.35271677]
[1767639584104,2.91664105,137.31,137.26,3.06763891]
[1767639584878,2.45171677,137.3,137.24,0.71492214]
[1767639585078,38.76830086,137.32,137.24,0.71492214]
[1767639585079,2.35271677,137.28,137.24,0.71492214]
[1767639585305,2.35271677,137.27,137.22,0.71492214]
[1767639585504,2.35271677,137.26,137.22,0.71492214]
[1767639585690,2.35271677,137.25,137.22,0.71492214]
[1767639585894,2.35271677,137.25,137.19,22.92168772]
[1767639586207,2.35271677,137.24,137.2,0.71492214]
[1767639586501,6.30912331,137.22,137.18,0.71492214]
[1767639586907,6.30912331,137.21,137.18,0.71492214]
[1767639587132,6.30912331,137.2,137.16,0.71492214]
[1767639587302,0.11686868,137.22,137.16,7.02404545]
[1767639587303,6.30912331,137.21,137.16,7.02404545]
[1767639587510,13.59759174,137.21,137.16,0.71492214]
[1767639587802,6.30912331,137.2,137.16,0.71492214]
[1767639588800,13.59759174,137.21,137.16,0.71492214]
[1767639589183,7.28846843,137.21,137.16,0.71492214]
[1767639589505,13.59759174,137.21,137.16,0.71492214]
[1767639591703,6.30912331,137.21,137.16,8.0055177]
[1767639592689,6.85070835,137.21,137.16,8.0055177]
[1767639593510,6.30912331,137.2,137.16,0.71492214]
[1767639593707,7.28788162,137.22,137.17,0.65315571]
[1767639593925,13.59700493,137.22,137.17,0.65315571]
[1767639594294,6.30912331,137.21,137.17,0.65315571]
[1767639594509,7.28788162,137.22,137.17,0.65315571]
[1767639594897,6.30912331,137.21,137.17,0.65315571]
[1767639595694,6.40812331,137.21,137.16,14.25300643]
[1767639596204,6.30912331,137.21,137.17,0.65315571]
[1767639597108,6.30912331,137.21,137.15,32.4206798]
[1767639597109,6.30912331,137.19,137.15,33.07383551]
[1767639598409,0.56392428,137.2,137.15,33.07383551]
[1767639598616,6.30912331,137.19,137.15,33.07383551]
[1767639599012,6.30912331,137.19,137.15,40.36509285]
[1767639599211,7.85264163,137.2,137.15,40.36509285]
[1767639599514,14.16176494,137.2,137.16,0.65315571]
[1767639600219,6.30912331,137.19,137.16,0.65315571]
[1767639600416,7.85264163,137.2,137.16,0.65315571]
[1767639600719,6.30912331,137.2,137.16,0.65315571]
[1767639600914,6.30912331,137.21,137.17,0.66092162]
[1767639601119,6.30912331,137.22,137.17,0.66092162]
[1767639601321,7.38572858,137.24,137.19,6.97004493]
[1767639601503,6.40812331,137.24,137.19,6.97004493]
[1767639601698,0.099,137.24,137.19,6.97004493]
[1767639602024,6.40812331,137.24,137.19,0.66092162]
[1767639602205,0.099,137.24,137.19,6.97004493]
[1767639602405,6.40812331,137.24,137.19,6.97004493]
[1767639602601,7.84957153,137.26,137.2,6.97004493]
[1767639602804,6.40812331,137.25,137.2,6.97004493]
[1767639603005,6.30912331,137.24,137.2,0.66092162]
[1767639603207,7.39063911,137.23,137.18,0.66092162]
[1767639603406,6.86384162,137.22,137.18,0.66092162]
[1767639603608,6.30912331,137.2,137.18,0.66092162]
[1767639603819,6.30912331,137.2,137.16,0.66092162]
[1767639604015,6.30912331,137.19,137.16,0.66092162]
[1767639605126,6.4216586,137.17,137.12,0.66092162]
[1767639605418,6.30912331,137.15,137.12,0.66092162]